fUSD/lending_fUSD_20240201
["ID","MTS","AMOUNT","RATE_DAILY","PERIOD"]
[313115763,1706764248667,-500.0,0.00033972,2]
[313115764,1706764248676,-500.0,0.00033972,2]
[313115765,1706764248685,-500.0,0.00033972,2]
[313115766,1706764248694,-500.0,0.00033972,2]
[313115767,1706764248703,-544.97,0.00033972,2]
[313115768,1706764248712,-500.0,0.00033972,2]
[313115769,1706764248721,-500.0,0.00033972,2]
[313115770,1706764248730,-903.61,0.00033972,2]
[313115771,1706764248740,-966.72,0.00033972,2]
[313115772,1706764248750,-1180.63,0.00033972,7]
[313115773,1706764248761,-500.0,0.00033972,2]
[313115774,1706764248771,-500.0,0.00033972,2]
[313115775,1706764248780,-1035.52,0.00033972,2]
[313115776,1706764248790,-719.16,0.00033972,2]
[313115777,1706764248799,-206.62501842,0.00033972,2]
[313115778,1706764248808,-500.0,0.00033972,2]
[313115779,1706764248818,-500.0,0.00033972,2]
[313115780,1706764248827,-500.0,0.00033972,2]
[313115781,1706764248836,-500.0,0.00033972,2]
[313115782,1706764248845,-500.0,0.00033972,2]
[313115783,1706764248854,-500.0,0.00033972,2]
[313115784,1706764248864,-500.0,0.00033972,2]
[313115785,1706764248873,-1198.59,0.00033972,2]
[313115786,1706764248883,-500.0,0.00033972,2]
[313115787,1706764248892,-500.0,0.00033972,2]
[313115788,1706764248901,-500.0,0.00033972,2]
[313115789,1706764248910,-500.0,0.00033972,2]
[313115790,1706764248919,-337.16174964,0.00033972,2]
[313115791,1706764248929,-500.0,0.00033972,2]
[313115792,1706764248937,-500.0,0.00033972,2]
[313115793,1706764248946,-250.18441558,0.00033972,3]
[313115794,1706764248956,-500.0,0.00033972,2]
[313115795,1706764248965,-500.0,0.00033972,2]
[313115796,1706764248975,-500.0,0.00033972,2]
[313115797,1706764248984,-500.0,0.00033972,2]
[313115798,1706764248993,-500.0,0.00033972,2]
[313115799,1706764249002,-500.0,0.00033972,2]
[313115800,1706764249012,-500.0,0.00033972,2]
[313115801,1706764249021,-500.0,0.00033972,2]
[313115802,1706764249031,-500.0,0.00033972,2]
[313115803,1706764249041,-500.0,0.00033972,2]
[313115804,1706764249050,-500.0,0.00033972,2]
[313115805,1706764249059,-500.0,0.00033972,2]
[313115806,1706764249068,-500.0,0.00033972,2]
[313115807,1706764249077,-844.48,0.00033972,2]
[313115808,1706764249087,-500.0,0.00033972,2]
[313115809,1706764249096,-500.0,0.00033972,2]
[313115810,1706764249105,-158.56059797,0.00033972,2]
[313115811,1706764249114,-500.0,0.00033972,2]
[313115812,1706764249124,-500.0,0.00033972,2]
[313115813,1706764249133,-500.0,0.00033972,2]
[313115814,1706764249142,-427.22800297,0.00033972,2]
[313115815,1706764249151,-500.0,0.00033972,2]
[313115816,1706764249160,-500.0,0.00033972,2]
[313115817,1706764249170,-500.0,0.00033972,2]
[313115818,1706764249179,-500.0,0.00033972,2]
[313115819,1706764249188,-500.0,0.00033972,2]
[313115820,1706764249197,-500.0,0.00033972,2]
[313115821,1706764249206,-500.0,0.00033972,2]
[313115822,1706764249216,-500.0,0.00033972,2]
[313115823,1706764249225,-500.0,0.00033972,2]
[313115824,1706764249234,-500.0,0.00033972,2]
[313115825,1706764249243,-533.76270983,0.00033972,2]
[313115826,1706764249252,-646.8,0.00033972,2]
[313115827,1706764249262,-694.26,0.00033972,2]
[313115828,1706764249271,-1325.26,0.00033972,2]
[313115829,1706764249281,-500.0,0.00033972,2]
[313115830,1706764249290,-500.0,0.00033972,2]
[313115831,1706764249300,-500.0,0.00033972,2]
[313115832,1706764249309,-500.0,0.00033972,2]
[313115833,1706764249319,-500.0,0.00033972,2]
[313115834,1706764249328,-500.0,0.00033972,2]
[313115835,1706764249337,-812.21,0.00033972,5]
[313115836,1706764249347,-726.2,0.00033972,2]
[313115837,1706764249356,-1154.17,0.00033972,2]
[313115838,1706764249365,-558.88,0.00033972,2]
[313115839,1706764249374,-619.81763256,0.00033972,2]
[313115840,1706764249384,-500.0,0.00033972,2]
[313115841,1706764249393,-500.0,0.00033972,2]
[313115842,1706764249403,-744.15,0.00033972,2]
[313115843,1706764249413,-2998.66,0.00033972,2]
[313115844,1706764249422,-500.0,0.00033972,2]
[313115845,1706764249431,-1090.8,0.00033972,2]
[313115846,1706764249440,-500.0,0.00033972,2]
[313115847,1706764249449,-500.0,0.00033972,2]
[313115848,1706764249459,-2334.32,0.00033972,2]
[313115849,1706764249469,-1125.27,0.00033972,2]
[313115850,1706764249478,-500.0,0.00033972,2]
[313115851,1706764249488,-2572.03,0.00033972,2]
[313115852,1706764249498,-1000.0,0.00033972,21]
[313115853,1706764249508,-646.65,0.00033972,2]
[313115854,1706764249517,-500.0,0.00033972,2]
[313115855,1706764249526,-500.0,0.00033972,2]
[313115856,1706764249535,-500.0,0.00033972,2]
[313115857,1706764249544,-976.09,0.00033972,2]
[313115858,1706764249554,-232.41617919,0.00033972,2]
[313115859,1706764249568,-500.0,0.00033972,2]
[313115860,1706764249577,-500.0,0.00033972,2]
[313115861,1706764249586,-500.0,0.00033972,2]
[313115862,1706764249595,-882.36,0.00033972,2]
[313115863,1706764249604,-1222.72,0.00033972,2]
[313115864,1706764249614,-500.0,0.00033972,2]
[313115865,1706764249623,-500.0,0.00033972,2]
[313115866,1706764249632,-500.0,0.00033972,2]
[313115867,1706764249641,-615.94,0.00033972,2]
[313115868,1706764249650,-4756.15,0.00033972,2]
[313115869,1706764249659,-566.49,0.00033972,2]
[313115870,1706764249668,-500.0,0.00033972,2]
[313115871,1706764249677,-613.94,0.00033972,2]
[313115872,1706764249687,-500.0,0.00033972,2]
[313115873,1706764249696,-500.0,0.00033972,2]
[313115874,1706764249705,-500.0,0.00033972,2]
[313115875,1706764249714,-500.0,0.00033972,2]
[313115876,1706764249723,-500.0,0.00033972,2]
[313115877,1706764249733,-500.0,0.00033972,2]
[313115878,1706764249742,-521.68690562,0.00033972,2]
[313115879,1706764249753,-572.55,0.00033972,2]
[313115880,1706764249764,-500.0,0.00033972,2]
[313115881,1706764249773,-1219.09,0.00033972,2]
[313115882,1706764249783,-500.0,0.00033972,2]
[313115883,1706764249793,-500.0,0.00033972,2]
[313115884,1706764249802,-500.0,0.00033972,2]
[313115885,1706764249811,-500.0,0.00033972,2]
[313115886,1706764249821,-500.0,0.00033972,2]
[313115887,1706764249830,-500.0,0.00033972,2]
[313115888,1706764249840,-500.0,0.00033972,2]
[313115889,1706764249849,-734.19,0.00033972,2]
[313115890,1706764249858,-1095.15,0.00033972,2]
[313115891,1706764249868,-500.0,0.00033972,2]
[313115892,1706764249878,-787.25,0.00033972,2]
[313115893,1706764249887,-545.45,0.00033972,2]
[313115894,1706764249897,-500.0,0.00033972,2]
[313115895,1706764249906,-500.0,0.00033972,2]
[313115896,1706764249915,-510.91,0.00033972,2]
[313115897,1706764249925,-500.0,0.00033972,2]
[313115898,1706764249934,-500.0,0.00033972,2]
[313115899,1706764249943,-500.0,0.00033972,2]
[313115900,1706764249952,-502.7,0.00033972,2]
[313115901,1706764249961,-1049.66,0.00033972,2]
[313115902,1706764249971,-500.0,0.00033972,2]
[313115903,1706764249980,-535.68,0.00033972,2]
[313115904,1706764249990,-630.03,0.00033972,2]
[313115905,1706764249999,-534.32455932,0.00033972,2]
[313115906,1706764250009,-515.88,0.00033972,2]
[313115907,1706764250019,-950.25,0.00033972,2]
[313115908,1706764250028,-525.51,0.00033972,2]
[313115909,1706764250038,-2676.27,0.00033972,2]
[313115910,1706764250047,-500.0,0.00033972,2]
[313115911,1706764250056,-500.0,0.00033972,2]
[313115912,1706764250065,-500.0,0.00033972,2]
[313115913,1706764250074,-500.0,0.00033972,2]
[313115914,1706764250084,-500.0,0.00033972,2]
[313115915,1706764250093,-500.0,0.00033972,2]
[313115916,1706764250102,-753.34,0.00033972,2]
[313115917,1706764250112,-500.0,0.00033972,2]
[313115918,1706764250122,-500.0,0.00033972,2]
[313115919,1706764250132,-749.99,0.00033972,2]
[313115920,1706764250142,-500.0,0.00033972,2]
[313115921,1706764250151,-500.0,0.00033972,2]
[313115922,1706764250161,-1191.55,0.00033972,2]
[313115923,1706764250170,-584.12,0.00033972,2]
[313115924,1706764250179,-500.0,0.00033972,2]
[313115925,1706764250189,-500.0,0.00033972,2]
[313115926,1706764250198,-1199.33,0.00033972,2]
[313115927,1706764250207,-500.0,0.00033972,2]
[313115928,1706764250216,-543.27,0.00033972,2]
[313115929,1706764250225,-1000.0,0.00033972,7]
[313115930,1706764250234,-2584.93,0.00033972,2]
[313115931,1706764250243,-589.94,0.00033972,2]
[313115932,1706764250252,-539.83,0.00033972,2]
[313115933,1706764250261,-596.15,0.00033972,2]
[313115934,1706764250272,-585.67,0.00033972,2]
[313115935,1706764250282,-500.0,0.00033972,2]
[313115936,1706764250291,-1063.1,0.00033972,2]
[313115937,1706764250301,-1000.0,0.00033972,7]
[313115938,1706764250311,-625.67,0.00033972,2]
[313115939,1706764250321,-500.0,0.00033972,2]
[313115940,1706764250331,-1467.48,0.00033972,2]
[313115941,1706764250341,-1552.63,0.00033972,2]
[313115942,1706764250350,-500.0,0.00033972,2]
[313115943,1706764250359,-993.17,0.00033972,2]
[313115944,1706764250368,-500.0,0.00033972,2]
[313115945,1706764250377,-500.0,0.00033972,2]
[313115946,1706764250387,-500.0,0.00033972,2]
[313115947,1706764250396,-766.95,0.00033972,2]
[313115948,1706764250405,-1917.33,0.00033972,5]
[313115949,1706764250415,-500.0,0.00033972,2]
[313115950,1706764250424,-997.25,0.00033972,2]
[313115951,1706764250434,-500.0,0.00033972,2]
[313115952,1706764250443,-546.73702577,0.00033972,2]
[313115953,1706764250452,-500.0,0.00033972,2]
[313115954,1706764250462,-500.0,0.00033972,2]
[313115955,1706764250471,-2175.53,0.00033972,2]
[313115956,1706764250480,-639.8,0.00033972,2]
[313115957,1706764250489,-651.88,0.00033972,2]
[313115958,1706764250500,-500.0,0.00033972,2]
[313115959,1706764250509,-17050.54,0.00033972,2]
[313115960,1706764250519,-500.0,0.00033972,2]
[313115961,1706764250529,-650.55,0.00033972,2]
[313115962,1706764250538,-500.0,0.00033972,2]
[313115963,1706764250548,-1374.46,0.00033972,2]
[313115964,1706764250558,-500.0,0.00033972,2]
[313115965,1706764250567,-1323.97,0.00033972,2]
[313115966,1706764250577,-500.0,0.00033972,2]
[313115967,1706764250586,-500.0,0.00033972,2]
[313115968,1706764250596,-555.19,0.00033972,2]
[313115969,1706764250605,-500.0,0.00033972,2]
[313115970,1706764250615,-500.0,0.00033972,2]
[313115971,1706764250624,-561.73,0.00033972,2]
[313115972,1706764250634,-1221.6,0.00033972,2]
[313115973,1706764250643,-1352.88,0.00033972,2]
[313115974,1706764250652,-762.08,0.00033972,2]
[313115975,1706764250662,-500.0,0.00033972,2]
[313115976,1706764250671,-707.86,0.00033972,2]
[313115977,1706764250681,-585.84,0.00033972,2]
[313115978,1706764250690,-2250.52,0.00033972,2]
[313115979,1706764250699,-500.0,0.00033972,2]
[313115980,1706764250708,-716.1,0.00033972,2]
[313115981,1706764250718,-500.0,0.00033972,2]
[313115982,1706764250727,-513.0710692,0.00033972,2]
[313115983,1706764250736,-500.0,0.00033972,2]
[313115984,1706764250746,-500.0,0.00033972,2]
[313115985,1706764250760,-500.0,0.00033972,2]
[313115986,1706764250770,-811.63,0.00033972,2]
[313115987,1706764250779,-500.0,0.00033972,2]
[313115988,1706764250789,-500.0,0.00033972,2]
[313115989,1706764250798,-500.0,0.00033972,2]
[313115990,1706764250808,-669.33,0.00033972,2]
[313115991,1706764250817,-636.49088979,0.00034,4]
[313115992,1706764250827,-1132.22653486,0.00034,35]
[313115993,1706764250838,-151.0201,0.00034048,4]
[313115994,1706764250849,-153.06,0.00034051,2]
[313115995,1706764250858,-351.0,0.000341,7]
[313115996,1706764250867,-500.0,0.00034115,2]
[313115997,1706764250876,-357.72,0.00034115,2]
[313115998,1706764250886,-151.0201,0.00034148,4]
[313115999,1706764250895,-500.0,0.00034242,2]
[313116000,1706764250905,-500.0,0.00034242,2]
[313116001,1706764250914,-300.0,0.00034242,2]
[313116002,1706764250923,-500.0,0.00034242,2]
[313116003,1706764250932,-500.0,0.00034243,2]
[313116004,1706764250941,-200.0,0.00034243,2]
[313116005,1706764250951,-151.0201,0.00034248,4]
[313116006,1706764250960,-403.35,0.00034384,2]
[313116007,1706764250969,-150.0,0.00034384,2]
[313116008,1706764250978,-431.96095718,0.00034422,3]
[313116009,1706764250987,-1585.87357355,0.00034436,2]
[313116010,1706764250997,-1500.0,0.00034454,2]
[313116011,1706764251006,-2000.0,0.000345,3]
[313116012,1706764251016,-2000.0,0.000345,3]
[313116013,1706764251025,-2000.0,0.000345,3]
[313116014,1706764251034,-2000.0,0.000345,3]
[313116015,1706764251043,-2000.0,0.000345,3]
[313116016,1706764251052,-2000.0,0.000345,3]
[313116017,1706764251061,-810.17,0.000345,3]
[313116018,1706764251070,-500.0,0.000345,2]
[313116019,1706764251080,-1044.4885598,0.000345,2]
[313116020,1706764251089,-150.0,0.000345,8]
[313116021,1706764251098,-150.0,0.000345,8]
[313116022,1706764251107,-404.78078115,0.00034519,4]
[313116023,1706764251116,-92537.84906882,0.0003452,2]
[313116024,1706764251684,-314.37965918,0.00033424,2]
[313116025,1706764251696,-185.62034082,0.00033424,2]
[313116026,1706764251707,-500.0,0.00033424,2]
[313116027,1706764251717,-8716.26344367,0.0003452,2]
[313116028,1706764251726,-1437.66415,0.0003452,2]
[313116029,1706764251735,-1337.94,0.0003452,2]
[313116030,1706764251744,-1000.0,0.0003452,7]
[313116031,1706764251756,-500.0,0.0003452,2]
[313116032,1706764251765,-560.27,0.0003452,2]
[313116033,1706764251774,-500.0,0.0003452,10]
[313116034,1706764251783,-541.11,0.0003452,2]
[313116035,1706764251793,-500.0,0.0003452,2]
[313116036,1706764251802,-500.0,0.0003452,2]
[313116037,1706764251811,-1354.85,0.0003452,2]
[313116038,1706764251820,-707.52,0.0003452,2]
[313116039,1706764251830,-597.19,0.0003452,2]
[313116040,1706764251839,-500.0,0.0003452,2]
[313116041,1706764251850,-580.43,0.0003452,2]
[313116042,1706764251859,-500.0,0.0003452,2]
[313116043,1706764251868,-500.0,0.0003452,2]
[313116044,1706764251877,-79.02606991,0.0003452,2]
[313116045,1706764252317,-816.22100029,0.000324,2]
[313116046,1706764252331,-336.91501424,0.000324,2]
[313116047,1706764252342,-1138.50001,0.000324,2]
[313116048,1706764252353,-735.43609094,0.000324,2]
[313116049,1706764252364,-543.43566378,0.000324,2]
[313116050,1706764252383,-525.21345931,0.000324,2]
[313116051,1706764252398,-838.48045101,0.000324,2]
[313116052,1706764252406,-1362.02954899,0.00032866,10]
[313116053,1706764252419,-840.63045101,0.00032866,10]
[313116054,1706764252429,-500.0,0.00033972,2]
[313116055,1706764252438,-500.0,0.00033972,2]
[313116056,1706764252447,-420.97393009,0.0003452,2]
[313116057,1706764252456,-152.3422105,0.0003452,2]
[313116058,1706764252465,-500.0,0.0003452,2]
[313116059,1706764252474,-211.42987581,0.0003452,2]
[313116060,1706764252842,-470.68534485,0.00029485,2]
[313116061,1706764252855,-4055.89237026,0.00029485,2]
[313116062,1706764252864,-899.49012419,0.0003452,2]
[313116063,1706764252873,-500.0,0.0003452,2]
[313116064,1706764252882,-528.58411088,0.0003452,2]
[313116065,1706764252892,-964.26,0.0003452,2]
[313116066,1706764252902,-500.0,0.0003452,2]
[313116067,1706764252911,-500.0,0.0003452,2]
[313116068,1706764252919,-1739.73,0.0003452,2]
[313116069,1706764252929,-500.0,0.0003452,2]
[313116070,1706764252938,-544.97,0.0003452,2]
[313116071,1706764252947,-266.37276154,0.0003452,2]
[313116072,1706764253162,-4235.11979845,0.000324,2]
[313116073,1706764333465,-496.77130862,0.00024998,2]
[313116074,1706764333487,-712.34,0.00024999,2]
[313116075,1706764333507,-533.88869138,0.00024999,2]
[313116076,1706764502227,-709.67,0.00025,2]
[313116077,1706764502247,-737.28,0.00025,2]
[313116078,1706764502266,-709.86,0.00025,2]
[313116079,1706764502286,-711.58,0.00025,2]
[313116080,1706764502305,-202.3461783,0.00025,2]
[313116081,1706764502325,-350.0,0.00025,3]
[313116082,1706764502344,-0.2638217,0.00025,2]
[313116084,1706764529461,-7000.0,0.00025,2]
[313116085,1706764560032,-737.68,0.00025,2]
[313116086,1706764560054,-738.16,0.00025,2]
[313116087,1706764563267,721.28,0.00025,2]
[313116091,1706765241800,698.2,0.00025,2]
[313116104,1706765431727,-400.0,0.00027,3]
[313116105,1706765431737,-668.88177545,0.00027,2]
[313116106,1706765431746,-437.58064064,0.000274,2]
[313116107,1706765431765,-62.41935936,0.000274,2]
[313116108,1706765431775,-250.0,0.000274,2]
[313116109,1706765431784,-719.65,0.00027683,2]
[313116110,1706765431794,-43540.21834703,0.00027684,2]
[313116111,1706765431804,-728.07,0.00028059,2]
[313116112,1706765431813,-450.0,0.00029,3]
[313116113,1706765431822,-301.3,0.00029241,2]
[313116114,1706765431831,-10834.25613757,0.00029474,2]
[313116115,1706765431841,-291.02911606,0.00029484,2]
[313116116,1706765431852,-2592.73,0.00029484,2]
[313116117,1706765431861,-500.0,0.0003,2]
[313116118,1706765431870,-155.0,0.0003,2]
[313116119,1706765431879,-1162.63,0.00030048,2]
[313116120,1706765431887,-699.47,0.00030049,2]
[313116121,1706765431897,-269.08573593,0.00030963,14]
[313116122,1706765431906,-250.0,0.00030963,2]
[313116124,1706765431915,-500.0,0.00031,3]
[313116126,1706765431924,-548.43,0.00031,2]
[313116128,1706765431934,-2202.42,0.00031017,2]
[313116130,1706765431943,-150.0,0.00031095,2]
[313116132,1706765431952,-379.75,0.00031147,2]
[313116134,1706765431961,-286.19,0.00031258,2]
[313116135,1706765431969,-269.27,0.00031269,2]
[313116136,1706765431978,-269.27,0.00031355,2]
[313116137,1706765431988,-269.27,0.00031441,2]
[313116138,1706765431996,-1000.0,0.000315,2]
[313116139,1706765432005,-500.0,0.000315,2]
[313116140,1706765432014,-301.3,0.00031505,2]
[313116141,1706765432023,-269.27,0.00031526,2]
[313116142,1706765432032,-166.06,0.00031542,2]
[313116143,1706765432041,-269.27,0.00031612,2]
[313116144,1706765432050,-1000.0,0.00031647,2]
[313116145,1706765432059,-269.27,0.00031698,2]
[313116146,1706765432068,-307.93,0.00031768,2]
[313116147,1706765432078,-269.27,0.00031784,2]
[313116148,1706765432087,-269.27,0.00031869,2]
[313116149,1706765432096,-269.27,0.00031955,2]
[313116150,1706765432105,-269.27,0.00032041,2]
[313116151,1706765432114,-269.27,0.00032127,2]
[313116152,1706765432122,-269.27,0.00032212,2]
[313116153,1706765432131,-269.27,0.00032298,2]
[313116154,1706765432140,-269.27,0.00032384,2]
[313116155,1706765432154,-305.07253524,0.00032398,4]
[313116156,1706765432162,-297.23685579,0.00032398,4]
[313116157,1706765432171,-935.98268242,0.00032398,2]
[313116158,1706765432180,-3114.20207667,0.00032398,4]
[313116159,1706765432193,-332.58901123,0.00032398,4]
[313116160,1706765432203,-1587.92031382,0.00032398,2]
[313116161,1706765432212,-404.78078115,0.00032399,4]
[313116162,1706765432221,-5633.68676721,0.000324,2]
[313116163,1706765432234,-200.0,0.000324,2]
[313116164,1706765432244,-281.85,0.00032403,2]
[313116165,1706765432255,-269.27,0.0003247,2]
[313116166,1706765432265,-202.62691188,0.000325,2]
[313116167,1706765432275,-3025.588173,0.00032545,4]
[313116168,1706765432284,-172.75,0.00032553,2]
[313116169,1706765432293,-269.27,0.00032555,2]
[313116170,1706765432302,-269.27,0.00032641,2]
[313116171,1706765432311,-1835.55,0.00032666,10]
[313116172,1706765432321,-1529.63,0.00032666,10]
[313116173,1706765432330,-251.8768,0.00032666,2]
[313116174,1706765432339,-3982.31544625,0.00032676,2]
[313116175,1706765432348,-269.27,0.00032727,2]
[313116176,1706765432357,-3982.31544621,0.00032739,2]
[313116177,1706765432366,-69761.6946,0.00032776,2]
[313116178,1706765432376,-486.9853,0.00032776,2]
[313116179,1706765432385,-322.08847439,0.00032776,6]
[313116180,1706765432394,-379.75,0.00032791,2]
[313116181,1706765432403,-3982.31544621,0.00032802,2]
[313116182,1706765432412,-269.27,0.00032813,2]
[313116183,1706765432422,-286.19,0.00032821,2]
[313116184,1706765432431,-3982.31544621,0.00032865,2]
[313116185,1706765432440,-217.20577801,0.00032874,4]
[313116186,1706765432450,-3071.20228877,0.00032874,4]
[313116187,1706765432459,-358.15247556,0.00032874,2]
[313116188,1706765432468,-11465.21931275,0.00032875,2]
[313116189,1706765432477,-494.06886089,0.00032876,2]
[313116190,1706765432487,-691.97977343,0.00032876,2]
[313116191,1706765432496,-803.55,0.00032876,2]
[313116192,1706765432505,-1449.78,0.00032876,2]
[313116193,1706765432514,-906.08,0.00032876,2]
[313116194,1706765432523,-500.0,0.00032876,2]
[313116195,1706765432531,-500.0,0.00032876,2]
[313116196,1706765432542,-500.0,0.00032876,2]
[313116197,1706765432551,-774.1,0.00032876,2]
[313116198,1706765432560,-158.56059797,0.00032876,2]
[313116199,1706765432570,-500.0,0.00032876,2]
[313116200,1706765432579,-500.0,0.00032876,2]
[313116201,1706765432588,-500.0,0.00032876,2]
[313116202,1706765432597,-500.0,0.00032876,2]
[313116203,1706765432607,-500.0,0.00032876,2]
[313116204,1706765432616,-500.0,0.00032876,2]
[313116205,1706765432626,-500.0,0.00032876,2]
[313116206,1706765432635,-845.88,0.00032876,2]
[313116207,1706765432644,-500.0,0.00032876,2]
[313116208,1706765432653,-500.0,0.00032876,2]
[313116209,1706765432662,-500.0,0.00032876,2]
[313116210,1706765432671,-533.76270983,0.00032876,2]
[313116211,1706765432680,-500.0,0.00032876,2]
[313116212,1706765432689,-500.0,0.00032876,2]
[313116213,1706765432698,-500.0,0.00032876,2]
[313116214,1706765432708,-500.0,0.00032876,2]
[313116215,1706765432717,-500.0,0.00032876,2]
[313116216,1706765432726,-500.0,0.00032876,2]
[313116217,1706765432737,-619.81763256,0.00032876,2]
[313116218,1706765432746,-500.0,0.00032876,2]
[313116219,1706765432755,-1098.7,0.00032876,2]
[313116220,1706765432764,-500.0,0.00032876,2]
[313116221,1706765432773,-1000.0,0.00032876,21]
[313116222,1706765432783,-525.14111117,0.00032876,2]
[313116223,1706765432792,-164.71138132,0.00032876,2]
[313116224,1706765432802,-500.0,0.00032876,2]
[313116225,1706765432812,-531.55857404,0.00032876,2]
[313116226,1706765432821,-500.0,0.00032876,2]
[313116227,1706765432830,-500.0,0.00032876,2]
[313116228,1706765432840,-521.68690562,0.00032876,2]
[313116229,1706765432849,-500.0,0.00032876,2]
[313116230,1706765432858,-534.32455932,0.00032876,2]
[313116231,1706765432867,-500.0,0.00032876,2]
[313116232,1706765432877,-500.0,0.00032876,2]
[313116233,1706765432886,-500.0,0.00032876,2]
[313116234,1706765432895,-514.92,0.00032876,2]
[313116235,1706765432903,-500.0,0.00032876,2]
[313116236,1706765432912,-587.58495478,0.00032876,2]
[313116237,1706765432921,-1057.98,0.00032876,2]
[313116238,1706765432931,-500.0,0.00032876,2]
[313116239,1706765432940,-500.0,0.00032876,2]
[313116240,1706765432949,-682.13,0.00032876,2]
[313116241,1706765432959,-564.62,0.00032876,2]
[313116242,1706765432968,-500.0,0.00032876,2]
[313116243,1706765432977,-2139.79,0.00032876,2]
[313116244,1706765432987,-500.0,0.00032876,2]
[313116245,1706765432996,-500.0,0.00032876,2]
[313116246,1706765433005,-1031.5,0.00032876,2]
[313116247,1706765433014,-2748.77,0.00032876,2]
[313116248,1706765433025,-894.75,0.00032876,2]
[313116249,1706765433034,-500.0,0.00032876,10]
[313116250,1706765433043,-1117.5,0.00032876,2]
[313116251,1706765433052,-500.0,0.00032876,2]
[313116252,1706765433061,-592.76,0.00032876,2]
[313116253,1706765433070,-845.59,0.00032876,2]
[313116254,1706765433079,-500.0,0.00032876,2]
[313116255,1706765433088,-500.0,0.00032876,2]
[313116256,1706765433097,-500.0,0.00032876,2]
[313116257,1706765433106,-500.0,0.00032876,2]
[313116258,1706765433116,-4359.8,0.00032876,2]
[313116259,1706765433124,-1171.77,0.00032876,2]
[313116260,1706765433134,-500.0,0.00032876,2]
[313116261,1706765433144,-500.0,0.00032876,2]
[313116262,1706765433154,-500.0,0.00032876,2]
[313116263,1706765433163,-2453.24,0.00032876,2]
[313116264,1706765433172,-500.0,0.00032876,2]
[313116265,1706765433182,-500.0,0.00032876,2]
[313116266,1706765433192,-589.6,0.00032876,2]
[313116267,1706765433201,-500.0,0.00032876,2]
[313116268,1706765433210,-673.0,0.00032876,2]
[313116269,1706765433219,-500.0,0.00032876,2]
[313116270,1706765433229,-687.49,0.00032876,2]
[313116271,1706765433240,-500.0,0.00032876,2]
[313116272,1706765433249,-500.0,0.00032876,2]
[313116273,1706765433259,-648.64180769,0.00032876,2]
[313116274,1706765433268,-500.0,0.00032876,2]
[313116275,1706765433277,-500.0,0.00032876,2]
[313116276,1706765433286,-690.56,0.00032876,2]
[313116277,1706765433294,-1003.88,0.00032876,2]
[313116278,1706765433304,-2369.51,0.00032876,2]
[313116279,1706765433313,-500.0,0.00032876,2]
[313116280,1706765433322,-1330.57,0.00032876,2]
[313116281,1706765433332,-500.0,0.00032876,2]
[313116282,1706765433341,-500.0,0.00032876,2]
[313116283,1706765433351,-557.61902005,0.00032876,2]
[313116284,1706765433360,-871.06,0.00032876,2]